fUST/lending_fUST_20240820
["ID","MTS","AMOUNT","RATE_DAILY","PERIOD"]
[335330274,1724116536257,-300.0,8.3e-05,2]
[335330275,1724116536283,-250.0,8.302e-05,2]
[335330276,1724116536307,-49544.73293812,8.521e-05,2]
[335330280,1724116738308,5000.0,7.376e-05,2]
[335330281,1724116754144,1693.97726717,7.376e-05,2]
[335330286,1724116991382,562.59039376,7.376e-05,2]
[335330289,1724117108003,820.12008693,7.376e-05,2]
[335330293,1724117233467,-300.0,7.442e-05,2]
[335330294,1724117233491,-24900.0,7.443e-05,2]
[335330295,1724117233515,-163.428975,7.472e-05,2]
[335330296,1724117233548,-163.428975,7.495e-05,2]
[335330297,1724117233575,-163.428975,7.518e-05,2]
[335330298,1724117233600,-163.428975,7.541e-05,2]
[335330299,1724117233624,-163.428975,7.564e-05,2]
[335330300,1724117233656,-163.428975,7.587e-05,2]
[335330301,1724117233681,-163.428975,7.61e-05,2]
[335330302,1724117233706,-163.428975,7.633e-05,2]
[335330303,1724117233730,-163.428975,7.656e-05,2]
[335330304,1724117233756,-163.428975,7.679e-05,2]
[335330305,1724117233781,-163.428975,7.701e-05,2]
[335330306,1724117233805,-163.428975,7.724e-05,2]
[335330307,1724117233831,-163.428975,7.747e-05,2]
[335330308,1724117233856,-163.428975,7.77e-05,2]
[335330309,1724117233880,-163.428975,7.793e-05,2]
[335330310,1724117233907,-163.428975,7.816e-05,2]
[335330311,1724117233933,-163.428975,7.839e-05,2]
[335330312,1724117233959,-163.428975,7.862e-05,2]
[335330313,1724117233983,-2142.81108391,7.911e-05,2]
[335330314,1724117234007,-1613.45959463,7.911e-05,2]
[335330315,1724117234033,-1766.47659697,7.911e-05,2]
[335330316,1724117234057,-2128.04084944,7.911e-05,2]
[335330317,1724117234083,-1637.84705997,7.911e-05,2]
[335330318,1724117234109,-2166.25640825,7.911e-05,2]
[335330319,1724117234310,-1500.0,7.911e-05,2]
[335330320,1724117234337,-810.48415788,7.911e-05,2]
[335330321,1724117234363,-159.96412206,7.911e-05,2]
[335330322,1724117234387,-665.46668942,7.911e-05,2]
[335330323,1724117234413,-933.80144992,7.911e-05,2]
[335330324,1724117234438,-260.56416113,7.911e-05,2]
[335330325,1724117234466,-320.27103328,7.911e-05,2]
[335330326,1724117234493,-155.34280739,7.911e-05,2]
[335330327,1724117234520,-257.83669127,7.911e-05,2]
[335330328,1724117234544,-215.11741299,7.911e-05,2]
[335330329,1724117234569,-155.48615663,7.911e-05,2]
[335330330,1724117234594,-222.44078643,7.911e-05,2]
[335330331,1724117234619,-154.76012181,7.911e-05,2]
[335330332,1724117234644,-601.88445386,7.911e-05,2]
[335330333,1724117234668,-294.66880401,7.911e-05,2]
[335330334,1724117234693,-157.09608348,7.911e-05,2]
[335330335,1724117234718,-342.65845262,7.911e-05,2]
[335330336,1724117234741,-728.79489661,7.911e-05,2]
[335330337,1724117234765,-160.44466579,7.911e-05,2]
[335330338,1724117234790,-200.0,7.92e-05,2]
[335330339,1724117234821,-152.56929023,7.92e-05,2]
[335330340,1724117234846,-200.0,7.92e-05,2]
[335330341,1724117234872,-420.0,8.187e-05,2]
[335330342,1724117234899,-5926.36293181,8.521e-05,2]
[335330343,1724117234923,-7013.41255393,8.521e-05,2]
[335330344,1724117234948,-8844.39705201,8.521e-05,2]
[335330345,1724117234975,-32100.07602101,8.521e-05,2]
[335330346,1724117235000,-3092.64278727,8.521e-05,2]
[335330347,1724117235028,-2712.58332809,8.521e-05,2]
[335330348,1724117235051,-521.29251267,8.521e-05,2]
[335330349,1724117235074,-156.82259234,8.769e-05,2]
[335330350,1724117235097,-523.45214377,8.769e-05,3]
[335330351,1724117235120,-600.88577429,8.769e-05,2]
[335330352,1724117235147,-154.76012181,8.769e-05,2]
[335330353,1724117235169,-154.96350239,8.769e-05,2]
[335330354,1724117235196,-154.82190538,8.769e-05,2]
[335330355,1724117235219,-433.50638658,8.94e-05,2]
[335330356,1724117235242,-587.0,9.005e-05,2]
[335330357,1724117235265,-400.0,9.29e-05,2]
[335330358,1724117235288,-293.0,9.906e-05,2]
[335330359,1724117235311,-382.3623136,0.0001,2]
[335330360,1724117235338,-20794.87454007,0.0001,2]
[335330361,1724117235362,-156.26242893,0.0001,2]
[335330362,1724117235386,-288.27624498,0.0001,2]
[335330363,1724117235413,-284.72512788,0.0001,2]
[335330364,1724117235438,-9659.27545044,0.00010739,2]
[335330365,1724117235461,-940.5712289,0.00010959,2]
[335330366,1724117235485,-320.31,0.00010959,2]
[335330367,1724117235508,-266.92,0.00010959,2]
[335330368,1724117235533,-222.43,0.00010959,2]
[335330369,1724117235558,-185.36,0.00010959,2]
[335330370,1724117235580,-154.76012181,0.00011,2]
[335330371,1724117235605,-600.0,0.00011293,2]
[335330372,1724117235628,-70463.8790132,0.000119,2]
[335330373,1724117235652,-182.23705968,0.00012516,2]
[335330374,1724117235678,-223.52112672,0.00012779,2]
[335330375,1724117235703,-32537.99035046,0.0001294,2]
[335330431,1724117432878,-300.0,8.371e-05,2]
[335330433,1724117432890,-18983.9658615,8.372e-05,2]
[335330435,1724117432903,-299.50005724,8.372e-05,2]
[335330556,1724117438818,-5616.53408126,8.372e-05,2]
[335330557,1724117438828,-544.95365382,8.521e-05,2]
[335330558,1724117438839,-9114.32179662,8.521e-05,2]
[335330559,1724117438849,-8844.39705201,8.521e-05,2]
[335330560,1724117438861,-7013.41255393,8.761e-05,2]
[335330561,1724117438871,-1766.63770101,8.761e-05,2]
[335330562,1724117438881,-2166.4854483,8.761e-05,2]
[335330563,1724117438891,-1657.30082509,8.761e-05,2]
[335330564,1724117438905,-470.94570856,8.761e-05,2]
[335330565,1724117438916,-1500.0,8.761e-05,2]
[335330566,1724117438927,-2143.02877073,8.761e-05,2]
[335330567,1724117438937,-2712.58332809,8.793e-05,2]
[335330568,1724117438947,-3092.64278727,8.793e-05,2]
[335330569,1724117438956,-521.35824671,8.793e-05,2]
[335330570,1724117438966,-320.30409158,8.793e-05,2]
[335330571,1724117438975,-197.78705024,8.793e-05,2]
[335330572,1724117438984,-213.11844268,8.793e-05,2]
[335330573,1724117438994,-728.8710597,8.793e-05,2]
[335330574,1724117439004,-601.94985179,8.793e-05,2]
[335330575,1724117439016,-154.76012181,8.861e-05,2]
[335330576,1724117439025,-422.14513971,8.861e-05,2]
[335330577,1724117439036,-940.33440613,8.861e-05,2]
[335330578,1724117439048,-664.81490185,8.861e-05,2]
[335330579,1724117439059,-157.11235205,8.861e-05,2]
[335330580,1724117439069,-810.48415788,8.861e-05,2]
[335330581,1724117439080,-420.0,9.209e-05,2]
[335330582,1724117439091,-10925.47230374,0.0001,2]
[335330583,1724117439104,-587.0,0.00010129,2]
[335330584,1724117439113,-156.61787501,0.00010859,2]
[335330585,1724117439123,-154.47,0.00010959,2]
[335330586,1724117439136,-772.37,0.00010959,2]
[335330587,1724117439146,-154.76012181,0.00011,2]
[335330588,1724117439157,-292.0,0.00011142,2]
[335330589,1724117439168,-544.00882293,0.00011999,2]
[335330590,1724117439178,-223.54518659,0.00012516,2]
[335330591,1724117439190,-898.81779354,0.00012782,2]
[335330592,1724117439202,-5312.30859999,0.000129,2]
[335330593,1724117439212,-5312.30859999,0.000129,2]
[335330594,1724117439223,-27622.27257278,0.000129,2]
[335330595,1724117439233,-305.18657656,0.0001294,2]
[335330596,1724117439243,-1671.98997101,0.0001294,2]
[335330597,1724117439254,-493.30764145,0.0001295,2]
[335330598,1724117439264,-520.61647298,0.00012971,2]
[335330599,1724117439276,-196.81150092,0.00012985,2]
[335330600,1724117439286,-404.43330921,0.00012989,2]
[335330601,1724117439296,-505.99352867,0.00012989,2]
[335330602,1724117439306,-569.55611374,0.00012989,2]
[335330603,1724117439317,-862.44048895,0.00013,2]
[335330604,1724117439329,-301.53815771,0.00013025,2]
[335330605,1724117439341,-301.53815771,0.00013025,2]
[335330606,1724117439351,-154.76012181,0.00013025,2]
[335330607,1724117439362,-495.14476956,0.00013333,2]
[335330608,1724117439373,-158.10419074,0.00013496,2]
[335330609,1724117439383,-158.1221147,0.00013496,2]
[335330610,1724117439393,-800.0,0.00013634,2]
[335330611,1724117439404,-55478.02051668,0.00013697,2]
[335330612,1724117439413,-365.15290406,0.00013698,2]
[335330613,1724117439423,-500.0,0.00013698,2]
[335330614,1724117439433,-500.0,0.00013698,2]
[335330615,1724117439443,-200.59230123,0.00013698,2]
[335330616,1724117439454,-500.0,0.00013698,2]
[335330617,1724117439463,-500.0,0.00013698,2]
[335330618,1724117439472,-500.0,0.00013698,2]
[335330619,1724117439481,-500.0,0.00013698,2]
[335330620,1724117439493,-459.54830221,0.00013698,2]
[335330621,1724117439503,-500.0,0.00013698,2]
[335330622,1724117439514,-500.0,0.00013698,2]
[335330623,1724117439524,-500.0,0.00013698,2]
[335330624,1724117439535,-500.0,0.00013698,2]
[335330625,1724117439548,-500.0,0.00013698,2]
[335330626,1724117439559,-614.55087346,0.00013698,2]
[335330627,1724117439568,-500.0,0.00013698,2]
[335330628,1724117439579,-500.0,0.00013698,2]
[335330629,1724117439589,-3000.0,0.00013699,2]
[335330631,1724117439600,-1136.33188,0.00013699,2]
[335330632,1724117439610,-194.82337617,0.00013699,2]
[335330633,1724117439621,-500.0,0.00013699,2]
[335330634,1724117439632,-500.0,0.00013699,2]
[335330635,1724117439644,-500.0,0.00013699,2]
[335330636,1724117439655,-578.18840627,0.00013699,2]
[335330637,1724117439667,-7032.81941237,0.00013971,2]
[335330638,1724117439679,-20715.93667635,0.00014,4]
[335330639,1724117439689,-4873.43310846,0.00014,2]
[335330640,1724117439699,-174.83511409,0.00014245,2]
[335330641,1724117439711,-750.0,0.00014247,2]
[335330642,1724117439864,-1613.45959463,0.00014519,2]
[335330643,1724117439877,-1613.45959463,0.00014519,2]
[335330644,1724117439889,-160.44466579,0.00014519,2]
[335330645,1724117439899,-342.65845262,0.00014519,2]
[335330646,1724117439911,-445.38267467,0.000149,2]
[335330647,1724117439921,-154.76012181,0.00015,2]
[335330648,1724117439932,-227.43331144,0.00015,2]
[335330649,1724117439943,-1557.80026965,0.00015,2]
[335330650,1724117439955,-165.11974632,0.00015,2]
[335330651,1724117439965,-500.0,0.0001546,2]
[335330652,1724117439979,-154.77456322,0.00015685,4]
[335330653,1724117439989,-154.9834205,0.00015685,2]
[335330654,1724117440001,-154.90348148,0.00015685,2]
[335330655,1724117440011,-154.77597245,0.00015685,2]
[335330656,1724117440021,-154.9834205,0.00015685,2]
[335330657,1724117440032,-154.7714216,0.00015685,2]
[335330658,1724117440044,-478.06124448,0.000157,2]
[335330659,1724117440056,-2000.0,0.0001587,2]
[335330660,1724117440068,-4144.52694303,0.0001588,2]
[335330661,1724117440080,-327.344398,0.0001589,2]
[335330662,1724117440091,-229.02282561,0.000159,2]
[335330663,1724117440102,-130627.57109,0.0001599,2]
[335330664,1724117440114,-100000.0,0.00016,2]
[335330665,1724117440127,-764.69461682,0.00016225,2]
[335330666,1724117440137,-500.0,0.00016274,2]
[335330667,1724117440149,-500.0,0.00016274,2]
[335330668,1724117440160,-5312.30859999,0.00016286,2]
[335330669,1724117440169,-150.112234,0.000163,2]
[335330672,1724117440179,-13727.86749964,0.000163,2]
[335330673,1724117440190,-275910.56912656,0.00016428,5]
[335330676,1724117440201,-130627.57109,0.00016428,2]
[335330678,1724117440210,-500.0,0.00016438,2]
[335330679,1724117440221,-500.0,0.00016438,2]
[335330680,1724117440231,-500.0,0.00016438,2]
[335330681,1724117440242,-500.0,0.00016438,2]
[335330682,1724117440252,-2005.0,0.00016438,10]
[335330683,1724117440262,-500.0,0.00016438,2]
[335330684,1724117440273,-500.0,0.00016438,2]
[335330685,1724117440285,-656.98,0.00016438,2]
[335330686,1724117440295,-500.0,0.00016438,2]
[335330687,1724117440306,-500.0,0.00016438,2]
[335330688,1724117440315,-533.07366567,0.00016438,2]
[335330689,1724117440326,-500.0,0.00016438,2]
[335330690,1724117440337,-500.0,0.00016438,2]
[335330691,1724117440348,-500.0,0.00016438,2]
[335330692,1724117440361,-500.0,0.00016438,2]
[335330693,1724117440371,-500.0,0.00016438,2]
[335330694,1724117440381,-460.07984016,0.00016438,2]
[335330695,1724117440392,-500.0,0.00016438,2]
[335330696,1724117440401,-737.39,0.00016438,2]
[335330697,1724117440412,-500.0,0.00016438,2]
[335330698,1724117440423,-2011.11,0.00016438,2]
[335330699,1724117440435,-500.0,0.00016438,2]
[335330700,1724117440445,-500.0,0.00016438,2]
[335330701,1724117440458,-500.0,0.00016438,2]
[335330702,1724117440467,-500.0,0.00016438,2]
[335330703,1724117440477,-500.0,0.00016438,2]
[335330704,1724117440487,-500.0,0.00016438,2]
[335330705,1724117440496,-500.0,0.00016438,2]
[335330706,1724117440506,-151.50348386,0.00016438,2]
[335330707,1724117440515,-1044.31,0.00016438,2]
[335330708,1724117440525,-500.0,0.00016438,2]
[335330709,1724117440536,-500.0,0.00016438,2]
[335330711,1724117440547,-500.0,0.00016438,2]
[335330714,1724117440556,-500.0,0.00016438,2]
[335330717,1724117440566,-500.0,0.00016438,2]
[335330720,1724117440576,-500.0,0.00016438,2]
[335330723,1724117440585,-500.0,0.00016438,2]
[335330724,1724117440594,-500.0,0.00016438,2]
[335330725,1724117440605,-500.0,0.00016438,2]
[335330726,1724117440614,-500.0,0.00016438,2]
[335330727,1724117440623,-500.0,0.00016438,2]
[335330728,1724117440633,-500.0,0.00016438,2]
[335330729,1724117440643,-500.0,0.00016438,2]
[335330730,1724117440653,-500.0,0.00016438,2]
[335330731,1724117440662,-500.0,0.00016438,2]
[335330732,1724117440672,-500.0,0.00016438,2]
[335330733,1724117440681,-500.0,0.00016438,2]
[335330734,1724117440691,-170.36,0.00016438,2]
[335330735,1724117440701,-500.0,0.00016438,2]
[335330736,1724117440711,-500.0,0.00016438,2]
[335330737,1724117440721,-500.0,0.00016438,2]
[335330738,1724117440731,-500.0,0.00016438,2]
[335330739,1724117440741,-500.0,0.00016438,2]
[335330740,1724117440750,-597.08,0.00016438,2]
[335330741,1724117440760,-252.8575071,0.00016438,2]
[335330742,1724117440769,-500.0,0.00016438,2]
[335330743,1724117440779,-646.33081111,0.00016438,2]
[335330745,1724117440789,-500.0,0.00016438,2]
[335330747,1724117440799,-500.0,0.00016438,2]
[335330749,1724117440809,-500.0,0.00016438,2]
[335330751,1724117440819,-500.0,0.00016438,2]
[335330752,1724117440828,-203.52777845,0.00016438,2]
[335330753,1724117440838,-500.0,0.00016438,2]
[335330754,1724117440848,-500.0,0.00016438,2]
[335330755,1724117440858,-500.0,0.00016438,2]
[335330757,1724117440868,-500.0,0.00016438,2]
[335330759,1724117440877,-500.0,0.00016438,2]
[335330761,1724117440887,-500.0,0.00016438,2]
[335330762,1724117440897,-500.0,0.00016438,2]
[335330763,1724117440907,-500.0,0.00016438,2]
[335330764,1724117440918,-500.0,0.00016438,2]
[335330765,1724117440928,-500.0,0.00016438,2]
[335330766,1724117440938,-2579.3,0.00016438,2]
[335330767,1724117440948,-500.0,0.00016438,2]
[335330768,1724117440958,-500.0,0.00016438,2]
[335330769,1724117440968,-500.0,0.00016438,2]
[335330770,1724117440978,-500.0,0.00016438,2]
[335330771,1724117440990,-474.791424,0.00016438,2]
[335330772,1724117441000,-474.791424,0.00016438,2]
[335330773,1724117441010,-170.55211134,0.00016438,2]
[335330774,1724117441022,-500.0,0.00016438,2]
[335330775,1724117441033,-500.0,0.00016438,2]
[335330776,1724117441043,-163.094173,0.00016438,2]
[335330777,1724117441054,-500.0,0.00016438,2]
[335330778,1724117441064,-829.42,0.00016438,2]
[335330779,1724117441075,-500.0,0.00016438,2]
[335330780,1724117441086,-500.0,0.00016438,2]
[335330781,1724117441098,-505.55650891,0.00016438,2]
[335330782,1724117441110,-500.0,0.00016438,2]
[335330783,1724117441121,-500.0,0.00016438,2]
[335330784,1724117441131,-500.0,0.00016438,2]
[335330785,1724117441141,-500.0,0.00016438,2]
[335330786,1724117441150,-500.0,0.00016438,2]
[335330787,1724117441159,-151.0,0.00016438,2]
[335330788,1724117441168,-500.0,0.00016438,2]
[335330789,1724117441177,-500.0,0.00016438,2]
[335330790,1724117441186,-151.0,0.00016438,2]
[335330791,1724117441195,-431.66523397,0.00016438,2]
[335330792,1724117441205,-500.0,0.00016438,2]
[335330793,1724117441214,-500.0,0.00016438,2]
[335330794,1724117441223,-1144.54,0.00016438,2]
[335330795,1724117441233,-500.0,0.00016438,2]
[335330796,1724117441242,-500.0,0.00016438,2]
[335330797,1724117441251,-500.0,0.00016438,2]
[335330798,1724117441261,-500.0,0.00016438,2]
[335330799,1724117441271,-602.15090383,0.00016438,2]
[335330800,1724117441280,-155.9040371,0.00016438,2]
[335330801,1724117441289,-476.87732872,0.00016438,2]
[335330802,1724117441298,-500.0,0.00016438,2]
[335330803,1724117441307,-396.09400744,0.00016438,2]
[335330804,1724117441319,-1280.96,0.00016438,2]
[335330805,1724117441330,-151.0,0.00016438,2]
[335330806,1724117441340,-500.0,0.00016438,2]
[335330807,1724117441351,-500.0,0.00016438,2]
[335330808,1724117441362,-500.0,0.00016438,2]
[335330809,1724117441372,-500.0,0.00016438,2]
[335330810,1724117441381,-577.76488072,0.00016438,2]
[335330811,1724117441391,-500.0,0.00016438,2]
[335330812,1724117441402,-500.0,0.00016438,2]
[335330813,1724117441413,-500.0,0.00016438,2]
[335330814,1724117441424,-500.0,0.00016438,2]
[335330815,1724117441435,-2788.67,0.00016438,2]
[335330816,1724117441446,-500.0,0.00016438,2]
[335330817,1724117441460,-603.53356319,0.00016438,2]
[335330818,1724117441471,-500.0,0.00016438,2]
[335330819,1724117441481,-500.0,0.00016438,2]
[335330820,1724117441492,-500.0,0.00016438,2]
[335330821,1724117441503,-500.0,0.00016438,2]
[335330822,1724117441512,-1132.15,0.00016438,2]
[335330823,1724117441522,-500.0,0.00016438,2]
[335330824,1724117441534,-500.0,0.00016438,2]
[335330825,1724117441546,-500.0,0.00016438,2]
[335330826,1724117441560,-3505.09,0.00016438,2]
[335330827,1724117441569,-500.0,0.00016438,2]
[335330828,1724117441580,-500.0,0.00016438,2]
[335330829,1724117441591,-500.0,0.00016438,2]
[335330830,1724117441602,-434.70634229,0.00016438,2]
[335330831,1724117441615,-500.0,0.00016438,2]
[335330832,1724117441624,-1398.74,0.00016438,2]
[335330833,1724117441634,-403.08913643,0.00016438,2]
[335330834,1724117441644,-500.0,0.00016438,2]
[335330835,1724117441654,-500.0,0.00016438,2]
[335330836,1724117441665,-500.0,0.00016438,2]
[335330837,1724117441676,-680.29,0.00016438,2]
[335330838,1724117441686,-500.0,0.00016438,2]
[335330839,1724117441698,-653.05,0.00016438,2]
[335330840,1724117441708,-375.52848703,0.00016438,2]
[335330841,1724117441718,-537.32,0.00016438,2]
[335330842,1724117441729,-500.0,0.00016438,2]
[335330843,1724117441740,-518.3864646,0.00016438,2]
[335330844,1724117441749,-500.0,0.00016438,2]
[335330845,1724117441760,-500.0,0.00016438,2]
[335330846,1724117441770,-276.64655862,0.00016438,2]
[335330847,1724117441780,-500.0,0.00016438,2]
[335330848,1724117441792,-500.0,0.00016438,2]
[335330849,1724117441801,-300.36373276,0.00016438,2]
[335330850,1724117441813,-500.0,0.00016438,2]
[335330851,1724117441823,-504.58085367,0.00016438,2]
[335330852,1724117441832,-500.0,0.00016438,2]
[335330853,1724117441842,-500.0,0.00016438,2]
[335330854,1724117441851,-500.0,0.00016438,2]
[335330855,1724117441867,-500.0,0.00016438,2]
[335330856,1724117441876,-500.0,0.00016438,2]
[335330857,1724117441885,-500.0,0.00016438,2]
[335330858,1724117441895,-500.0,0.00016438,2]
[335330859,1724117441904,-500.0,0.00016438,2]
[335330860,1724117441914,-500.0,0.00016438,2]
[335330861,1724117441925,-500.0,0.00016438,2]
[335330862,1724117441936,-446.98706339,0.00016438,2]
[335330863,1724117441946,-500.0,0.00016438,2]
[335330864,1724117441957,-500.0,0.00016438,2]
[335330865,1724117441967,-500.0,0.00016438,2]
[335330866,1724117441978,-500.0,0.00016438,2]
[335330867,1724117441990,-500.0,0.00016438,2]
[335330868,1724117441999,-500.0,0.00016438,2]
[335330869,1724117442009,-500.0,0.00016438,2]
[335330870,1724117442019,-514.70950679,0.00016438,2]
[335330871,1724117442029,-500.0,0.00016438,2]
[335330872,1724117442040,-177.81892764,0.00016438,2]
[335330873,1724117442052,-696.53,0.00016438,2]
[335330874,1724117442061,-500.44561053,0.00016438,2]
[335330875,1724117442071,-500.0,0.00016438,2]
[335330876,1724117442082,-864.38,0.00016438,2]
[335330877,1724117442092,-500.0,0.00016438,2]
[335330878,1724117442104,-500.0,0.00016438,2]
[335330879,1724117442114,-500.0,0.00016438,2]
[335330880,1724117442123,-500.0,0.00016438,2]
[335330881,1724117442134,-500.0,0.00016438,2]
[335330882,1724117442144,-500.0,0.00016438,2]
[335330883,1724117442155,-500.0,0.00016438,2]
[335330884,1724117442166,-179.70734281,0.00016438,2]
[335330885,1724117442176,-500.0,0.00016438,2]
[335330886,1724117442187,-500.0,0.00016438,2]
[335330887,1724117442195,-500.0,0.00016438,2]
[335330888,1724117442205,-500.0,0.00016438,2]
[335330889,1724117442214,-500.0,0.00016438,2]
[335330890,1724117442224,-500.0,0.00016438,2]
[335330891,1724117442233,-500.0,0.00016438,2]
[335330892,1724117442242,-500.0,0.00016438,2]
[335330893,1724117442252,-500.0,0.00016438,2]
[335330894,1724117442261,-500.0,0.00016438,2]
[335330895,1724117442270,-500.0,0.00016438,2]
[335330896,1724117442282,-500.0,0.00016438,2]
[335330897,1724117442292,-520.32443881,0.00016438,2]
[335330898,1724117442302,-508.1366818,0.00016438,2]
[335330899,1724117442311,-279.57087627,0.00016438,2]
[335330900,1724117442322,-501.55091637,0.00016438,2]
[335330901,1724117442332,-535.5807362,0.00016438,2]
[335330902,1724117442342,-977.21,0.00016438,2]
[335330903,1724117442352,-500.0,0.00016438,2]
[335330904,1724117442373,-500.0,0.00016438,2]
[335330905,1724117442383,-151.0,0.00016438,2]
[335330906,1724117442393,-500.0,0.00016438,2]
[335330907,1724117442405,-151.0,0.00016438,2]
[335330908,1724117442415,-510.01373803,0.00016438,2]
[335330909,1724117442427,-510.9339362,0.00016438,2]
[335330910,1724117442439,-500.0,0.00016438,2]
[335330911,1724117442448,-510.16238229,0.00016438,2]
[335330912,1724117442461,-504.05457436,0.00016438,2]
[335330913,1724117442472,-151.0,0.00016438,2]
[335330914,1724117442484,-168.901412,0.00016549,2]
[335330915,1724117442496,-65313.7855451,0.00016702,2]
[335330916,1724117442506,-500.0,0.00016712,2]
[335330917,1724117442517,-500.0,0.00016712,2]
[335330918,1724117442528,-500.0,0.00016712,2]
[335330919,1724117442540,-585.54017335,0.00016712,2]
[335330920,1724117442550,-2005.0,0.00016712,10]
[335330921,1724117442561,-500.0,0.00016712,2]
[335330922,1724117442572,-656.98,0.00016712,2]
[335330923,1724117442582,-500.0,0.00016712,2]
[335330924,1724117442594,-500.0,0.00016712,2]
[335330925,1724117442604,-500.0,0.00016712,2]
[335330926,1724117442615,-500.0,0.00016712,2]
[335330927,1724117442624,-339.95881554,0.00016712,2]
[335330928,1724117442634,-500.0,0.00016712,2]
[335330929,1724117442643,-737.39,0.00016712,2]
[335330930,1724117442653,-415.681214,0.00016712,2]
[335330931,1724117442663,-500.0,0.00016712,2]
[335330932,1724117442675,-415.681214,0.00016712,2]
[335330933,1724117442684,-2011.11,0.00016712,2]
[335330934,1724117442694,-500.0,0.00016712,2]
[335330935,1724117442704,-500.0,0.00016712,2]
[335330936,1724117442714,-500.0,0.00016712,2]
[335330937,1724117442723,-500.0,0.00016712,2]
[335330938,1724117442732,-500.0,0.00016712,2]
[335330939,1724117442742,-504.84629069,0.00016712,2]
[335330940,1724117442751,-500.0,0.00016712,2]
[335330941,1724117442760,-1044.31,0.00016712,2]
[335330942,1724117442769,-500.0,0.00016712,2]
[335330943,1724117442778,-500.0,0.00016712,2]
[335330944,1724117442788,-500.0,0.00016712,2]
[335330945,1724117442797,-161.82,0.00016712,2]
[335330946,1724117442806,-500.0,0.00016712,2]
[335330947,1724117442815,-500.0,0.00016712,2]
[335330948,1724117442824,-500.0,0.00016712,2]
[335330949,1724117442834,-500.0,0.00016712,2]
[335330950,1724117442844,-500.0,0.00016712,2]
[335330951,1724117442854,-500.0,0.00016712,2]
[335330952,1724117442865,-500.0,0.00016712,2]
[335330953,1724117442875,-500.0,0.00016712,2]
[335330954,1724117442883,-500.0,0.00016712,2]
[335330955,1724117442894,-500.0,0.00016712,2]
[335330956,1724117442903,-500.0,0.00016712,2]
[335330957,1724117442912,-500.0,0.00016712,2]
[335330958,1724117442921,-500.0,0.00016712,2]
[335330959,1724117442931,-500.0,0.00016712,2]
[335330960,1724117442940,-500.0,0.00016712,2]
[335330961,1724117442950,-500.0,0.00016712,2]
[335330962,1724117442959,-500.0,0.00016712,2]
[335330963,1724117442969,-597.08,0.00016712,2]
[335330964,1724117442978,-500.0,0.00016712,2]
[335330965,1724117442987,-500.0,0.00016712,2]
[335330966,1724117442996,-500.0,0.00016712,2]
[335330967,1724117443006,-500.0,0.00016712,2]
[335330968,1724117443015,-500.0,0.00016712,2]
[335330969,1724117443024,-500.0,0.00016712,2]
[335330970,1724117443033,-500.0,0.00016712,2]
[335330971,1724117443042,-500.0,0.00016712,2]
[335330972,1724117443051,-500.0,0.00016712,2]
[335330973,1724117443060,-500.0,0.00016712,2]
[335330974,1724117443070,-500.0,0.00016712,2]
[335330975,1724117443079,-500.0,0.00016712,2]
[335330976,1724117443088,-500.0,0.00016712,2]
[335330977,1724117443097,-500.0,0.00016712,2]
[335330978,1724117443108,-69.55879068,0.00016712,2]
[335330987,1724117443355,-211.35883896,0.00016712,2]
[335330989,1724117443365,-2579.3,0.00016712,2]
[335330991,1724117443373,-500.0,0.00016712,2]
[335330993,1724117443382,-500.0,0.00016712,2]
[335330995,1724117443391,-500.0,0.00016712,2]
[335330997,1724117443401,-500.0,0.00016712,2]